bitfinex/quotes_ETHUSD_20250214
["timestamp","ask_amount","ask_price","bid_price","bid_amount"]
[1739525953675,3.68423,2714.3,2714.0,0.77287578]
[1739525953879,3.68419,2714.3,2714.0,0.77287578]
[1739525954078,3.68433,2714.2,2714.0,0.77287578]
[1739525954674,3.6841,2714.4,2714.0,0.77287578]
[1739525954923,3.68421,2714.3,2714.0,0.77287578]
[1739525955717,3.6841,2714.4,2714.0,0.77287578]
[1739525955934,3.68434,2714.2,2714.0,0.77287578]
[1739525956293,3.6842,2714.3,2714.0,0.77287578]
[1739525956808,3.68433,2714.2,2714.0,0.77287578]
[1739525957564,3.68414,2714.4,2714.0,0.77287578]
[1739525958062,3.68432,2714.2,2714.0,0.77287578]
[1739525958264,3.68419,2714.3,2714.0,0.77287578]
[1739525959063,3.68432,2714.2,2714.0,0.77287578]
[1739525959561,3.68412,2714.4,2714.0,0.77287578]
[1739525959747,3.68439,2714.2,2714.0,0.77287578]
[1739525961163,3.68414,2714.4,2714.0,0.77287578]
[1739525961164,3.68419,2714.3,2714.0,0.77287578]
[1739525961366,3.6839,2714.6,2714.1,4.23439]
[1739525961565,3.68389,2714.6,2714.2,0.11896831]
[1739525961731,3.68393,2714.5,2714.2,0.11896831]
[1739525962062,4.46988,2714.7,2714.2,0.11896831]
[1739525962289,0.7862,2714.7,2714.2,0.11896831]
[1739525962503,7.36803,2714.5,2714.2,0.11896831]
[1739525962646,3.68398,2714.5,2714.2,0.66109179]
[1739525963104,7.36798,2714.5,2714.2,0.66109179]
[1739525963600,3.68408,2714.4,2714.2,0.66109179]
[1739525963801,3.68408,2714.4,2714.2,0.11896831]
[1739525964089,3.68394,2714.5,2714.2,0.11896831]
[1739525965052,7.36799,2714.5,2714.2,0.11896831]
[1739525965453,3.68394,2714.5,2714.2,0.11896831]
[1739525966116,3.68419,2714.3,2714.2,0.11896831]
[1739525966399,3.68419,2714.3,2714.0,0.6491]
[1739525966702,3.68419,2714.3,2714.1,0.11906612]
[1739525967577,3.68427,2714.3,2714.1,0.11906612]
[1739525969160,3.68432,2714.2,2714.1,0.11906612]
[1739525969356,3.68427,2714.3,2714.1,0.11906612]
[1739525969795,0.7862,2714.7,2714.1,0.11906612]
[1739525969994,3.68414,2714.4,2714.1,0.11906612]
[1739525970656,3.68432,2714.2,2714.1,0.11906612]
[1739525972458,3.6842,2714.3,2714.1,0.11906612]
[1739525972616,7.36852,2714.3,2714.1,0.11906612]
[1739525972796,3.6842,2714.3,2714.1,0.11906612]
[1739525973513,3.68432,2714.2,2714.1,0.11906612]
[1739525975026,3.6842,2714.3,2714.1,0.11906612]
[1739525975711,3.68405,2714.4,2714.1,0.11906612]
[1739525975910,3.68395,2714.5,2714.2,0.55]
[1739525976306,3.68395,2714.5,2714.3,0.11888289]
[1739525976507,3.68395,2714.5,2714.1,0.55]
[1739525976701,3.68395,2714.5,2714.2,0.488369]
[1739525977010,3.68397,2714.5,2714.2,0.60714334]
[1739525979826,3.68324,2715.0,2714.9,0.11805269]
[1739525979995,3.68378,2714.6,2714.3,0.6491]
[1739525980289,3.68345,2714.9,2714.4,0.55]
[1739525980597,3.68366,2714.7,2714.4,0.55]
[1739525980732,3.6838,2714.6,2714.4,0.55]
[1739525980932,3.68421,2714.3,2714.1,8.75]
[1739525981194,3.68421,2714.3,2714.0,0.6491]
[1739525981352,3.68402,2714.5,2714.0,1.67703394]
[1739525981539,3.68405,2714.4,2714.0,1.67703394]
[1739525981890,3.68405,2714.4,2714.1,0.55]
[1739525982659,3.68422,2714.3,2714.1,0.55]
[1739525982862,3.68408,2714.4,2714.1,0.55]
[1739525983034,4.4795,2714.6,2714.1,0.55]
[1739525983453,4.4795,2714.6,2714.1,2.98278942]
[1739525983649,4.4795,2714.6,2714.1,4.56461483]
[1739525983871,3.68393,2714.5,2714.1,4.56461483]
[1739525984096,4.4795,2714.6,2714.1,4.56461483]
[1739525984305,0.7957,2716.2,2715.5,4.23244]
[1739525984599,0.7957,2716.2,2715.6,0.27]
[1739525984742,0.7957,2716.2,2715.6,3.95237]
[1739525984940,0.7957,2716.2,2715.7,4.2322]
[1739525985174,0.7957,2716.2,2715.7,0.55]
[1739525985747,4.47736,2716.2,2715.7,0.55]
[1739525985961,4.47736,2716.2,2715.7,1.000251]
[1739525986148,0.7957,2716.5,2715.7,1.000251]
[1739525986363,3.68135,2716.4,2715.8,0.55]
[1739525987082,3.68148,2716.3,2715.8,0.55]
[1739525987282,3.68148,2716.3,2716.0,0.55]
[1739525987732,3.68143,2716.4,2716.0,0.55]
[1739525987939,3.6815,2716.3,2716.0,0.55]
[1739525988096,3.68143,2716.4,2716.0,0.58607821]
[1739525988440,3.68164,2716.2,2716.0,0.58607821]
[1739525989237,3.68143,2716.4,2716.0,0.58607821]
[1739525989436,7.3629,2716.4,2716.0,0.58607821]
[1739525989633,3.68174,2716.1,2716.0,0.58607821]
[1739525990507,3.68164,2716.2,2716.0,0.58607821]
[1739525991041,3.6815,2716.3,2716.0,0.58607821]
[1739525991249,3.6815,2716.3,2716.0,0.55]
[1739525991545,3.68162,2716.2,2716.0,0.55]
[1739525992536,3.68162,2716.2,2716.1,0.66121628]
[1739525993110,3.6815,2716.3,2716.1,0.66121628]
[1739525993312,3.68161,2716.2,2716.1,0.66121628]
[1739525993529,3.68147,2716.3,2716.1,0.66121628]
[1739525994250,3.68122,2716.5,2716.2,0.55]
[1739525994548,3.68122,2716.5,2716.1,0.66121628]
[1739525994753,3.68135,2716.4,2716.3,0.66099221]
[1739525995136,3.68107,2716.6,2716.3,0.55]
[1739525995342,3.68134,2716.4,2716.3,0.66099221]
[1739525999677,4.46138,2716.0,2715.9,0.03607953]
[1739525999854,7.46888,2716.0,2715.9,9.53e-06]
[1739526000037,8.583943,2716.0,2715.9,9.53e-06]
[1739526001657,8.75854834,2716.0,2715.9,9.53e-06]
[1739526001861,3.68175,2716.1,2715.9,9.53e-06]
[1739526002017,3.68184,2716.1,2715.9,9.53e-06]
[1739526002405,3.68188,2716.0,2715.9,9.53e-06]
[1739526002743,4.46888,2716.0,2715.9,9.53e-06]
[1739526003316,7.47638,2716.0,2715.9,9.53e-06]
[1739526003519,0.7795,2715.1,2714.4,0.275]
[1739526003722,0.7795,2715.1,2714.6,2.43278942]
[1739526004043,3.68321,2715.1,2714.6,2.43278942]
[1739526004448,3.6833,2715.0,2714.7,0.55]
[1739526004959,3.68339,2714.9,2714.7,0.55]
[1739526005166,3.68364,2714.7,2714.6,2.43278942]
[1739526005639,3.68351,2714.8,2714.7,0.55]
[1739526006462,3.68351,2714.8,2714.5,0.55]
[1739526006633,0.8079,2715.4,2714.5,0.55]
[1739526006634,3.68331,2715.0,2714.5,0.55]
[1739526006826,3.68331,2715.0,2714.7,1.1991]
[1739526007250,3.68331,2715.0,2714.9,0.55]
[1739526007627,3.68419,2714.3,2714.2,0.03072404]
[1739526008136,3.68383,2714.6,2714.2,0.03072404]
[1739526008337,0.8079,2714.9,2714.2,0.58072404]
[1739526008539,3.68382,2714.6,2714.2,0.58072404]
[1739526008751,3.68404,2714.5,2714.2,0.58072404]
[1739526008955,3.68419,2714.3,2714.2,0.58072404]
[1739526009135,3.68419,2714.3,2714.2,0.03072404]
[1739526012092,5.228914,2714.3,2714.2,0.03072404]
[1739526014357,3.68459,2714.0,2713.9,0.55]
[1739526015991,3.68459,2714.0,2713.9,0.64220306]
[1739526016349,3.68459,2714.0,2713.9,0.55]
[1739526016575,3.68459,2714.0,2713.9,0.64220306]
[1739526020664,3.68405,2714.4,2714.1,0.55]
[1739526020891,4.43867,2714.6,2714.1,0.55]
[1739526020892,3.68432,2714.2,2714.1,0.55]
[1739526021160,3.68432,2714.2,2713.9,0.09220306]
[1739526021161,3.68459,2714.0,2713.9,0.55]
[1739526022408,3.68459,2714.0,2713.9,0.64279092]
[1739526023010,3.58432,2714.2,2713.9,0.64279092]
[1739526023317,3.68453,2714.1,2713.9,0.64279092]
[1739526023816,3.58432,2714.2,2713.9,0.64279092]
[1739526024416,3.68415,2714.4,2713.9,4.32745092]
[1739526024574,3.68415,2714.4,2714.1,0.55]
[1739526025146,3.68415,2714.4,2714.3,0.55]
[1739526025450,3.68415,2714.4,2714.3,0.64239964]
[1739526028163,3.68405,2714.4,2714.3,0.64239964]
[1739526028461,3.68433,2714.2,2714.0,0.55]
[1739526028830,3.68405,2714.4,2714.1,0.09259526]
[1739526029158,3.68415,2714.4,2714.1,0.09259526]
[1739526029616,7.36829,2714.4,2714.1,0.09259526]
[1739526030016,3.68429,2714.3,2714.1,0.09259526]
[1739526030518,3.6842,2714.3,2714.1,0.09259526]
[1739526030951,3.68414,2714.4,2714.1,0.09259526]
[1739526031273,3.68427,2714.3,2714.1,0.09259526]
[1739526031466,3.68423,2714.3,2714.1,0.09259526]
[1739526031620,3.68414,2714.4,2714.1,0.09259526]
[1739526031821,3.68422,2714.3,2714.1,0.09259526]
[1739526032036,3.68422,2714.3,2714.1,0.13288012]
[1739526033316,3.68398,2714.5,2714.1,0.13288012]
[1739526033610,3.68406,2714.4,2714.1,0.13288012]
[1739526033783,7.36822,2714.4,2714.1,0.13288012]
[1739526034337,3.68406,2714.4,2714.1,0.13288012]
[1739526034611,3.68422,2714.3,2714.2,0.55]
[1739526034920,3.68422,2714.3,2714.2,0.68273721]
[1739526035417,3.68355,2714.8,2714.2,0.68273721]
[1739526035603,3.68416,2714.4,2714.2,0.68273721]
[1739526036014,3.68414,2714.4,2714.2,0.68273721]
[1739526036225,3.68419,2714.3,2714.2,0.68273721]
[1739526036431,0.7548,2714.9,2714.4,0.55]
[1739526036634,3.68296,2715.2,2714.6,0.55]
[1739526036787,3.68296,2715.2,2714.8,0.55]
[1739526037320,3.68322,2715.1,2715.0,0.55]
[1739526037628,3.6831,2715.1,2715.0,0.6819348]
[1739526038144,3.68294,2715.3,2715.0,0.6819348]
[1739526039302,3.68218,2715.8,2715.0,0.6819348]
[1739526039303,0.8117,2715.9,2715.3,3.68274]
[1739526039502,4.49337,2716.2,2715.5,3.68252]
[1739526039821,3.68201,2716.0,2715.7,0.55]
[1739526040003,3.68215,2715.8,2715.7,0.55]
[1739526040204,3.68215,2715.8,2715.1,7.03789942]
[1739526040428,3.6823,2715.7,2715.2,0.70378994]
[1739526040583,3.6823,2715.7,2715.3,0.55]
[1739526041030,7.36416,2715.9,2715.3,0.55]
[1739526041202,3.68223,2715.8,2715.3,0.55]
[1739526042041,3.68231,2715.7,2715.3,0.55]
[1739526042202,3.68204,2715.9,2715.3,1.13588399]
[1739526042537,3.6823,2715.7,2715.3,1.13588399]
[1739526043823,3.6823,2715.7,2715.5,0.55]
[1739526045135,3.68242,2715.6,2715.5,0.55]
[1739526045680,3.6823,2715.7,2715.5,0.55]
[1739526046864,3.68242,2715.6,2715.5,0.55]
[1739526047023,3.6821,2715.9,2715.5,0.55]
[1739526047225,3.68232,2715.7,2715.5,0.55]
[1739526048228,3.68209,2715.9,2715.5,0.55]
[1739526048424,3.68209,2715.9,2715.5,1.038179]
[1739526048622,7.36419,2715.9,2715.5,1.038179]
[1739526048828,3.68209,2715.9,2715.5,1.038179]
[1739526049757,3.68224,2715.8,2715.5,1.038179]
[1739526050077,3.68237,2715.7,2715.5,0.55]
[1739526050827,3.68229,2715.7,2715.5,0.55]
[1739526052272,3.68215,2715.8,2715.7,0.55]
[1739526052451,3.68203,2715.9,2715.7,0.55]
[1739526052657,3.68203,2715.9,2715.7,0.68032604]
[1739526052868,3.68215,2715.8,2715.7,0.68032604]
[1739526053064,7.36412,2715.9,2715.7,0.68032604]
[1739526053276,3.68215,2715.8,2715.7,0.68032604]
[1739526053641,7.36413,2715.9,2715.7,0.68032604]
[1739526053842,3.68215,2715.8,2715.7,0.68032604]
[1739526054388,0.8117,2716.2,2715.7,0.68032604]
[1739526054544,3.68202,2715.9,2715.7,0.68032604]
[1739526054993,3.68196,2716.0,2715.7,0.68032604]
[1739526055286,3.68199,2716.0,2715.7,0.68032604]
[1739526055605,3.68215,2715.8,2715.7,0.68032604]
[1739526057253,3.68183,2716.1,2715.7,0.68032604]
[1739526057496,3.682,2716.0,2715.7,0.68032604]
[1739526057989,3.68183,2716.1,2715.7,1.11660664]
[1739526057990,3.68204,2715.9,2715.7,1.11660664]
[1739526058187,3.68204,2715.9,2715.7,0.68032604]
[1739526058388,3.68215,2715.8,2715.7,0.68032604]
[1739526063511,4.43805,2715.8,2715.7,0.13032604]
[1739526063716,4.43805,2715.8,2715.7,6.04e-06]
[1739526063927,3.68337,2714.9,2714.8,5.25]
[1739526064062,3.68372,2714.7,2714.5,0.05365419]
[1739526064254,7.36748,2714.7,2714.5,0.05365419]
[1739526064525,7.36746,2714.7,2714.5,0.05365419]
[1739526064700,3.68378,2714.6,2714.5,0.05365419]
[1739526065275,3.68351,2714.8,2714.5,0.05365419]
[1739526065760,3.68351,2714.8,2714.6,0.55]
[1739526066918,3.68324,2715.0,2714.8,0.55]
[1739526068078,3.68303,2715.2,2714.8,0.55]
[1739526068659,4.43661,2715.5,2714.8,0.55]
[1739526068916,3.68324,2715.0,2714.8,0.55]
[1739526069411,3.68313,2715.1,2714.8,0.55]
[1739526070350,3.68326,2715.0,2714.8,0.55]
[1739526070662,3.68291,2715.3,2714.8,0.55]
[1739526070963,3.68311,2715.1,2714.8,0.55]
[1739526071295,3.68311,2715.1,2714.9,0.12655946]
[1739526071492,3.68324,2715.0,2714.9,0.67655946]
[1739526074064,3.68311,2715.1,2714.9,0.67655946]
[1739526074269,3.68288,2715.3,2714.9,0.67655946]
[1739526074399,3.68281,2715.4,2714.9,0.67655946]
[1739526074594,0.754,2715.5,2715.0,0.55]
[1739526074800,3.68251,2715.6,2715.1,0.81247622]
[1739526075120,3.68268,2715.5,2715.1,0.77564863]
[1739526075459,3.68275,2715.4,2715.2,0.55]
[1739526075663,3.68283,2715.3,2715.2,0.55]
[1739526075821,3.68283,2715.3,2715.2,1.27023569]
[1739526077057,3.68283,2715.3,2715.2,0.55]
[1739526082377,3.68283,2715.3,2715.2,0.67644939]
[1739526084369,3.68271,2715.4,2715.3,0.55]
[1739526084725,3.68271,2715.4,2715.3,0.67635016]
[1739526087987,4.495318,2715.4,2715.3,0.12635016]
[1739526088488,3.6831,2715.1,2715.0,0.55]
[1739526088690,4.4439,2715.1,2715.0,0.67655809]
[1739526090256,4.4439,2715.1,2715.0,0.12655809]
[1739526090595,3.68337,2714.9,2714.8,1.27203683]
[1739526091256,0.7608,2715.3,2714.9,0.55]
[1739526091453,3.68317,2715.1,2714.9,0.55]
[1739526091650,3.68324,2715.0,2714.9,0.55]
[1739526091900,3.68351,2714.8,2714.7,5.25]
[1739526092690,3.68351,2714.8,2714.7,5.8]
[1739526093779,4.44417,2714.9,2714.7,5.8]
[1739526093780,3.68337,2714.9,2714.7,5.8]
[1739526093995,3.68337,2714.9,2714.8,0.55]
[1739526097478,3.68337,2714.9,2714.8,0.67675661]
[1739526102881,3.68311,2715.1,2714.8,1.34171059]
[1739526103080,3.68311,2715.1,2714.8,1.99081059]
[1739526103256,3.68324,2715.0,2714.8,1.99081059]
[1739526104353,3.68324,2715.0,2714.8,2.42972331]
[1739526105266,3.68296,2715.2,2714.8,2.42972331]
[1739526105466,3.68326,2715.0,2714.8,2.42972331]
[1739526105898,3.68276,2715.4,2715.0,0.55]
[1739526106193,4.43845,2715.8,2715.2,0.55]
[1739526106395,3.68216,2715.8,2715.7,0.55]
[1739526106774,3.68216,2715.8,2715.7,0.67598185]
[1739526107157,0.7562,2716.3,2715.7,0.67598185]
[1739526107396,3.68197,2716.0,2715.7,0.67598185]
[1739526107605,3.68197,2716.0,2715.7,2.00173704]
[1739526108184,3.68203,2715.9,2715.7,2.00173704]
[1739526108376,3.68197,2716.0,2715.7,2.00173704]
[1739526108772,3.68164,2716.2,2715.7,2.00173704]
[1739526109288,7.36334,2716.2,2715.7,2.00173704]
[1739526109487,3.68164,2716.2,2715.9,0.55]
[1739526109902,3.68164,2716.2,2716.1,0.55]
[1739526110292,3.68164,2716.2,2716.1,0.67549567]
[1739526113017,4.44054,2716.2,2716.1,0.12549567]
[1739526113325,0.7589,2716.2,2715.9,0.55]
[1739526113510,3.68189,2716.0,2715.9,0.55]
[1739526119754,3.68206,2715.9,2715.7,0.55]
[1739526120367,3.68175,2716.1,2715.7,0.55]
[1739526120511,3.68175,2716.1,2715.7,1.6361033]
[1739526120952,3.68189,2716.0,2715.7,1.6361033]
[1739526121609,3.68203,2715.9,2715.6,5.25]
[1739526121906,3.68203,2715.9,2715.7,0.55]
[1739526122109,0.7589,2716.2,2715.6,5.25]
[1739526122303,3.68229,2715.7,2715.6,5.25]
[1739526122537,3.68229,2715.7,2715.6,5.8]
[1739526123466,3.68215,2715.8,2715.7,0.55]
[1739526124440,3.68215,2715.8,2715.6,5.25]
[1739526124441,4.47639,2715.7,2715.6,5.25]
[1739526124784,3.68229,2715.7,2715.6,5.25]
[1739526124947,3.68242,2715.6,2715.5,1.27958302]
[1739526125280,3.68215,2715.8,2715.5,1.27958302]
[1739526125432,3.68242,2715.6,2715.5,1.27958302]
[1739526126191,3.68229,2715.7,2715.5,1.27958302]
[1739526126752,3.68242,2715.6,2715.5,1.27958302]
[1739526127183,3.68242,2715.6,2715.5,0.55]
[1739526127390,3.68242,2715.6,2715.5,0.67545851]
[1739526128741,3.68242,2715.6,2715.5,0.12545851]
[1739526128937,5.185691,2715.6,2715.5,8.51e-06]
[1739526129182,3.68364,2714.7,2714.6,5.8991]
[1739526129487,3.68352,2714.8,2714.6,5.25]
[1739526129636,3.68352,2714.8,2714.6,5.36759105]
[1739526129843,3.6835,2714.9,2714.7,0.27413213]
[1739526130042,3.68329,2715.0,2714.7,0.27413213]
[1739526130441,3.6831,2715.1,2714.9,0.55]
[1739526130601,4.418941,2715.6,2715.0,2.43278942]
[1739526130602,0.7668,2715.6,2715.0,2.43278942]
[1739526130755,3.68267,2715.5,2715.2,0.55]
[1739526130956,3.68267,2715.5,2715.3,0.11712379]
[1739526131178,3.68269,2715.4,2715.3,0.66712379]
[1739526132397,3.68264,2715.5,2715.3,0.66712379]
[1739526132794,0.7668,2715.9,2715.3,0.66712379]
[1739526133092,3.86265411,2716.9,2715.3,0.66712379]
[1739526133093,3.68166,2716.2,2715.7,1.1991]
[1739526133282,3.68191,2716.0,2715.8,0.36318894]
[1739526133468,3.68191,2716.0,2715.8,0.11649771]
[1739526133669,7.3639,2716.0,2715.7,1.1991]
[1739526133876,3.68191,2716.0,2715.7,1.1991]
[1739526134096,3.68191,2716.0,2715.8,0.11649771]
[1739526134310,5.43278942,2717.1,2715.8,0.11649771]
[1739526134311,3.68155,2716.3,2715.9,0.55]
[1739526134509,3.68155,2716.3,2715.9,0.27413213]
[1739526134811,3.68165,2716.2,2716.0,0.11629934]
[1739526134967,3.68174,2716.1,2716.0,0.11629934]
[1739526135711,3.68174,2716.1,2716.0,0.66629934]
[1739526138216,4.494755,2716.1,2716.0,0.11629934]
[1739526138399,5.261555,2716.1,2716.0,0.11629934]
[1739526138582,3.68202,2715.9,2715.8,0.27406355]
[1739526139315,3.68188,2716.0,2715.6,0.55]
[1739526139504,3.68256,2715.5,2715.4,0.55]
[1739526140573,3.68256,2715.5,2715.4,0.8242369]
[1739526142204,3.68256,2715.5,2715.4,0.2742369]
[1739526142475,3.68256,2715.5,2715.4,0.3909527]
[1739526143101,3.68256,2715.5,2715.4,0.2742369]
[1739526143313,4.496279,2715.5,2715.4,0.2742369]
[1739526143516,4.496279,2715.5,2715.4,0.39112739]
[1739526144292,4.496279,2715.5,2715.4,0.11689049]
[1739526144519,4.496279,2715.5,2714.9,0.55]
[1739526144702,3.68324,2715.0,2714.9,0.55]
[1739526145016,3.68351,2714.8,2714.7,0.43861142]
[1739526145893,3.68351,2714.8,2714.7,0.98861142]
[1739526146478,3.68351,2714.8,2714.7,0.8242686]
[1739526148222,3.68351,2714.8,2714.7,0.55]
[1739526149934,0.7783,2715.1,2714.7,0.55]
[1739526150237,3.68352,2714.8,2714.7,0.55]
[1739526151239,3.68338,2714.9,2714.7,1.3615737]
[1739526151435,3.68338,2714.9,2714.7,3.79436312]
[1739526152141,3.68338,2714.9,2714.7,4.06863172]
[1739526152840,3.68351,2714.8,2714.7,4.06863172]
[1739526153340,3.68351,2714.8,2714.7,0.8242686]
[1739526153643,3.68351,2714.8,2714.7,0.55]
[1739526157406,3.68351,2714.8,2714.7,0.66805656]
[1739526168962,3.68258,2715.5,2714.7,0.66805656]
[1739526168963,1.52940511,2716.3,2715.2,0.0075]
[1739526169183,4.48736,2716.3,2715.4,1.1991]
[1739526169467,5.3222262,2716.3,2715.7,3.6822]
[1739526169629,5.3222262,2716.3,2715.7,3.68229]
[1739526169960,3.68163,2716.2,2715.9,0.55]
[1739526170162,5.3221462,2716.3,2716.1,0.55]
[1739526170336,5.3221462,2716.3,2716.2,0.11670647]
[1739526171162,3.68094,2716.7,2716.3,0.55]
[1739526171659,3.68094,2716.7,2716.5,0.55]
[1739526171862,7.36198,2716.7,2716.5,0.55]
[1739526172031,3.68094,2716.7,2716.6,0.66630988]
[1739526172234,3.6808,2716.8,2716.7,0.55]
[1739526172565,3.6808,2716.8,2716.7,0.66621075]
[1739526177389,3.68075,2716.9,2716.7,0.66621075]
[1739526177595,3.68066,2716.9,2716.7,0.66621075]
[1739526177725,3.6808,2716.8,2716.7,0.66621075]
[1739526178787,0.096599,2717.3,2716.7,0.66621075]
[1739526178934,3.6808,2716.8,2716.7,0.66621075]
[1739526179131,3.6806,2717.0,2716.7,0.66621075]
[1739526179336,3.68034,2717.2,2716.7,0.66621075]
[1739526179537,3.68062,2717.0,2716.7,0.66621075]
[1739526179771,7.36124,2717.0,2716.7,0.66621075]
[1739526180050,3.096599,2717.3,2716.7,0.66621075]
[1739526180366,3.68053,2717.0,2716.7,0.66621075]
[1739526180935,7.36117,2717.0,2716.7,0.66621075]
[1739526181667,3.68059,2717.0,2716.7,0.66621075]
[1739526182071,3.68068,2716.9,2716.7,0.66621075]
[1739526185674,3.6808,2716.8,2716.7,0.66621075]
[1739526198561,4.43493575,2716.8,2716.7,0.11621075]
[1739526198753,5.24803575,2716.8,2716.1,2.43278942]
[1739526198959,3.68133,2716.5,2716.2,0.66537407]
[1739526199176,3.68119,2716.6,2716.2,0.66537407]
[1739526199382,3.68135,2716.4,2716.2,0.66537407]
[1739526200476,7.36279,2716.4,2716.2,0.66537407]
[1739526200672,3.68135,2716.4,2716.2,1.41474387]
[1739526201388,7.36278,2716.4,2716.2,1.41474387]
[1739526201585,3.68135,2716.4,2716.2,1.41474387]
[1739526202384,0.99298752,2717.0,2716.3,0.6491]
[1739526202590,0.8131,2717.0,2716.6,0.55]
[1739526202752,3.68089,2716.8,2716.7,0.66492706]
[1739526204952,3.68089,2716.8,2716.7,0.11492706]
[1739526205281,3.68107,2716.6,2716.5,2.43278942]
[1739526205851,3.68094,2716.7,2716.5,2.43278942]
[1739526206089,3.68107,2716.6,2716.5,2.43278942]
[1739526208295,3.68094,2716.7,2716.5,2.43278942]
[1739526208682,3.68107,2716.6,2716.5,2.43278942]
[1739526209270,3.68107,2716.6,2716.3,0.6491]
[1739526209479,3.68094,2716.7,2716.3,5.20852625]
[1739526209801,3.68094,2716.7,2716.3,1.52706625]
[1739526210103,3.68108,2716.6,2716.3,1.52706625]
[1739526210786,3.68122,2716.5,2716.3,1.52706625]
[1739526210973,3.68122,2716.5,2716.2,3.63182255]
[1739526212575,3.68108,2716.6,2716.2,3.63182255]
[1739526213266,3.68129,2716.5,2716.2,3.63182255]
[1739526213465,3.68108,2716.6,2716.2,3.63182255]
[1739526213663,3.68108,2716.6,2716.2,7.31340255]
[1739526213885,3.68111,2716.6,2716.2,3.63182255]
[1739526214369,0.8131,2717.0,2716.2,3.63182255]
[1739526214703,3.68095,2716.7,2716.2,7.31333255]
[1739526214907,3.32196222,2716.7,2716.2,7.31333255]
[1739526215599,7.36153,2716.9,2716.3,3.68141]
[1739526215763,7.36153,2716.9,2716.2,7.31333255]
[1739526215764,3.68091,2716.8,2716.2,7.31333255]
[1739526215965,3.68095,2716.7,2716.2,7.31333255]
[1739526216388,7.36201,2716.7,2716.3,0.85124326]
[1739526216564,3.68107,2716.6,2716.3,0.85124326]
[1739526216978,3.68107,2716.6,2716.3,1.19433685]
[1739526217181,3.68088,2716.8,2716.3,1.19433685]
[1739526217416,3.68094,2716.7,2716.4,0.11514326]
[1739526218623,3.68094,2716.7,2716.5,0.34309359]
[1739526218922,4.49363,2717.0,2716.6,0.11494497]
[1739526219083,3.68076,2716.9,2716.6,0.11494497]
[1739526219507,0.8131,2717.0,2716.6,0.11494497]
[1739526219712,3.68076,2716.9,2716.6,0.11494497]
[1739526219916,0.8131,2717.0,2716.7,0.34309359]
[1739526220126,3.68059,2717.0,2716.7,0.34309359]
[1739526220281,3.68049,2717.1,2716.8,0.11474672]
[1739526220479,3.68066,2716.9,2716.8,0.11474672]
[1739526220785,3.68053,2717.0,2716.8,0.11474672]
[1739526221007,3.68053,2717.0,2716.9,0.34309359]
[1739526221209,3.68052,2717.0,2716.9,1.10684119]
[1739526221685,3.68052,2717.0,2716.9,0.45774119]
[1739526223707,3.68052,2717.0,2716.9,0.34309359]
[1739526223899,4.50782,2717.0,2716.9,0.34309359]
[1739526227499,3.68052,2717.0,2716.9,0.34309359]
[1739526228158,3.68052,2717.0,2716.9,0.45763162]
[1739526231387,3.68052,2717.0,2716.9,0.34309359]
[1739526231791,3.68052,2717.0,2716.9,0.45763162]
[1739526232745,3.68052,2717.0,2716.9,0.34309359]
[1739526232931,3.68052,2717.0,2716.9,0.45768033]
[1739526234480,3.68052,2717.0,2716.9,0.45768033]
[1739526236046,3.68052,2717.0,2716.9,0.34309359]
[1739526236738,3.68052,2717.0,2716.9,0.45768033]
[1739526237629,3.68052,2717.0,2716.9,0.34309359]
[1739526237962,3.68052,2717.0,2716.9,0.45768033]
[1739526243928,3.86218338,2717.1,2716.9,0.45768033]
[1739526244132,3.68052,2717.0,2716.9,0.45768033]
[1739526245669,3.86218338,2717.1,2716.9,0.45768033]
[1739526245834,3.68052,2717.0,2716.9,0.45768033]
[1739526246030,7.54270338,2717.1,2716.9,0.45768033]
[1739526246252,3.68052,2717.0,2716.9,0.45768033]
[1739526246425,3.86220338,2717.1,2716.9,0.45768033]
[1739526246767,3.68052,2717.0,2716.9,0.45768033]
[1739526247160,3.86219338,2717.1,2716.9,0.45768033]
[1739526247487,3.86219338,2717.1,2717.0,0.34309359]
[1739526247844,3.86219338,2717.1,2717.0,0.4575609]
[1739526248245,3.6804,2717.1,2717.0,0.4575609]
[1739526250258,3.68026,2717.2,2717.0,0.4575609]
[1739526250985,3.68039,2717.1,2717.0,0.4575609]
[1739526251191,3.68026,2717.2,2717.0,0.4575609]
[1739526251685,3.68026,2717.2,2717.0,1.66905313]
[1739526252214,7.36059,2717.2,2717.0,1.66905313]
[1739526252487,3.776739,2717.3,2717.0,1.66905313]
[1739526252786,3.68026,2717.2,2717.0,1.66905313]
[1739526253155,3.68026,2717.2,2717.1,0.34309359]
[1739526253558,3.776739,2717.3,2717.1,0.4574618]
[1739526254388,3.776739,2717.3,2717.2,1.21149223]
[1739526254687,3.776739,2717.3,2717.2,1.32576135]
[1739526255391,0.096599,2717.3,2717.2,1.66885494]
[1739526257143,0.096599,2717.3,2717.2,5.34910494]
[1739526257485,0.096599,2717.3,2717.2,5.3216232]
[1739526257659,0.096599,2717.3,2717.2,1.6413732]
[1739526259188,0.096599,2717.3,2717.2,1.10646271]
[1739526260050,3.776719,2717.3,2717.2,0.45736271]
[1739526261689,0.096599,2717.3,2717.2,0.45736271]
[1739526262258,3.776719,2717.3,2717.2,0.45736271]
[1739526264767,3.776719,2717.3,2717.2,0.11426912]
[1739526264951,3.776719,2717.3,2717.2,0.4568084]
[1739526265148,3.776719,2717.3,2717.2,0.34253928]
[1739526265375,3.776719,2717.3,2717.2,0.4563579]
[1739526265694,0.096599,2717.3,2717.2,0.4563579]
[1739526265882,3.776719,2717.3,2717.2,0.4563579]
[1739526275321,0.096599,2717.3,2717.2,0.4563579]
[1739526275627,3.776719,2717.3,2717.2,0.4563579]
[1739526276126,0.096599,2717.3,2717.2,0.4563579]
[1739526276486,3.776719,2717.3,2717.2,0.4563579]
[1739526281813,5.3680809,2717.3,2717.2,0.4563579]